[Event "FRA-chT Top 12 2019"]
[Site "Brest"]
[Date "2019.05.26"]
[Round "9.7"]
[White "Loiseau, Quentin"]
[Black "Edouard, Romain"]
[Result "1/2-1/2"]
[ECO "B23"]
[WhiteElo "2471"]
[BlackElo "2642"]
[Annotator "ChessBase"]
[PlyCount "88"]
[EventDate "2019.05.18"]
[EventType "team-tourn"]
[EventCountry "FRA"]
[SourceTitle "playchess.com"]
[Source "ChessBase"]
[SourceQuality "1"]
[TimeControl "40/5400+30:1800+30"]

1. e4 {[%emt 0:00:00]} c5 {[%emt 0:00:00]} 2. Nc3 {[%emt 0:00:00]} g6 {[%emt 0:02:10]} 3. d4 {[%emt 0:05:27]} cxd4 {[%emt 0:00:24]} 4. Qxd4 {[%emt 0:00:13]} Nf6 {[%emt 0:00:04]} 5. Be2 {[%emt 0:23:54]} Nc6 {[%emt 0:01:46]} 6. Qd2 {[%emt 0:00:12]} Bg7 {[%emt 0:00:34]} 7. g4 {[%emt 0:09:30]} d6 {[%emt 0:04:38]} 8. g5 {[%emt 0:02:43]} Nd7 {[%emt 0:00:13]} 9. h4 {[%emt 0:08:15]} Nc5 {[%emt 0:07:16]} 10. h5 {[%emt 0:03:54]} O-O {[%emt 0:15:53]} 11. f3 {[%emt 0:04:15]} e6 {[%emt 0:02:37]} 12. b3 {[%emt 0:10:36]} d5 {[%emt 0:07:20]} 13. exd5 {[%emt 0:00:47]} exd5 {[%emt 0:00:03]} 14. Bb2 {[%emt 0:00:37]} Bf5 {[%emt 0:03:17]} 15. O-O-O {[%emt 0:01:28]} d4 {[%emt 0:16:02]} 16. Nb5 {[%emt 0:01:18]} Ne6 {[%emt 0:01:24]} 17. hxg6 {[%emt 0:00:51]} hxg6 {[%emt 0:00:29]} 18. Bc4 {[%emt 0:01:48]} Qxg5 {[%emt 0:02:17]} 19. Qxg5 {[%emt 0:01:08]} Nxg5 {[%emt 0:00:06]} 20. Nxd4 {[%emt 0:04:29]} Nxd4 {[%emt 0:00:07]} 21. Bxd4 {[%emt 0:00:06]} Rfd8 {[%emt 0:05:52]} 22. Be3 {[%emt 0:01:52]} Rxd1+ {[%emt 0:02:05]} 23. Kxd1 {[%emt 0:00:14]} Rd8+ {[%emt 0:00:04]} 24. Kc1 {[%emt 0:00:56]} Bf6 {[%emt 0:00:02]} 25. a4 {[%emt 0:00:40]} a6 {[%emt 0:00:20]} 26. Rh2 {[%emt 0:01:00]} Kg7 {[%emt 0:00:46]} 27. Rg2 {[%emt 0:00:59]} Ne6 {[%emt 0:02:22]} 28. Ne2 {[%emt 0:00:32]} Be5 {[%emt 0:03:04]} 29. Ng3 {[%emt 0:08:28]} Bh3 {[%emt 0:00:12]} 30. Rh2 {[%emt 0:00:19]} Nf4 {[%emt 0:03:13]} 31. Rd2 {[%emt 0:03:24]} Re8 {[%emt 0:00:54]} 32. Bd4 {[%emt 0:02:52]} g5 {[%emt 0:06:32]} 33. Ne4 {[%emt 0:00:15]} f6 {[%emt 0:00:49]} 34. Bxe5 {[%emt 0:01:55]} Rxe5 {[%emt 0:00:01]} 35. Rd6 {[%emt 0:00:07]} b5 {[%emt 0:01:02]} 36. axb5 {[%emt 0:01:57]} axb5 {[%emt 0:00:01]} 37. Bd3 {[%emt 0:00:48]} Nxd3+ {[%emt 0:01:09]} 38. Rxd3 {[%emt 0:00:13]} Bf5 {[%emt 0:09:07]} 39. Rd4 {[%emt 0:00:40]} Bxe4 {[%emt 0:03:22]} 40. fxe4 {[%emt 0:00:02]} Kg6 {[%emt 0:00:37]} 41. Kd2 {[%emt 0:04:16]} Kh5 {[%emt 0:04:28]} 42. c4 {[%emt 0:04:29]} bxc4 {[%emt 0:04:25]} 43. bxc4 {[%emt 0:00:20]} Kg4 {[%emt 0:04:59]} 44. Kd3 {[%emt 0:04:55]} f5 {[%emt 0:08:28]} 1/2-1/2

[Event "FRA-chT Top 12 2019"]
[Site "Brest"]
[Date "2019.05.26"]
[Round "9.7"]
[White "Guichard, Pauline"]
[Black "Adrian, Claude"]
[Result "1/2-1/2"]
[ECO "A05"]
[WhiteElo "2430"]
[BlackElo "2238"]
[Annotator "NA"]
[PlyCount "71"]
[EventDate "2019.05.18"]
[EventType "team-tourn"]
[EventCountry "FRA"]
[SourceTitle "playchess.com"]
[Source "ChessBase"]
[SourceQuality "1"]
[TimeControl "40/5400+30:1800+30"]

1. Nf3 {[%emt 0:00:00]} Nf6 {[%emt 0:00:35]} 2. c4 {[%emt 0:00:00]} c5 {[%emt 0:00:06]} 3. Nc3 {[%emt 0:00:00]} e6 {[%emt 0:00:08]} 4. e4 {[%emt 0:00:28]} Nc6 {[%emt 0:00:39]} 5. d4 {[%emt 0:00:18]} cxd4 {[%emt 0:00:09]} 6. Nxd4 {[%emt 0:00:07]} Bb4 {[%emt 0:00:39]} 7. Nxc6 {[%emt 0:00:18]} bxc6 {[%emt 0:00:14]} 8. Bd3 {[%emt 0:00:11]} e5 {[%emt 0:02:45]} 9. O-O {[%emt 0:00:57]} O-O {[%emt 0:03:11]} 10. Qe2 {[%emt 0:00:42]} Qc7 {[%emt 0:05:50]} 11. Bg5 {[%emt 0:06:41]} Be7 {[%emt 0:03:06]} 12. Rac1 {[%emt 0:03:31]} d6 {[%emt 0:01:04]} 13. b4 {[%emt 0:04:02]} Be6 {[%emt 0:03:15]} 14. Na4 {[%emt 0:11:05]} Rae8 {[%emt 0:06:53]} 15. Rfe1 {[%emt 0:12:01]} Nd7 {[%emt 0:02:27]} 16. Bxe7 {[%emt 0:02:21]} Rxe7 {[%emt 0:00:24]} 17. c5 {[%emt 0:00:10]} dxc5 {[%emt 0:02:20]} 18. Nxc5 {[%emt 0:00:42]} Nxc5 {[%emt 0:00:16]} 19. Rxc5 {[%emt 0:00:33]} Rd8 {[%emt 0:00:10]} 20. Bb5 {[%emt 0:12:21]} Qb8 {[%emt 0:04:55]} 21. Rxc6 {[%emt 0:08:18]} Bxa2 {[%emt 0:02:30]} 22. Rc5 {[%emt 0:06:51]} Be6 {[%emt 0:01:40]} 23. Rec1 {[%emt 0:01:59]} a6 {[%emt 0:05:25]} 24. Bxa6 {[%emt 0:07:57]} Qxb4 {[%emt 0:00:17]} 25. h3 {[%emt 0:04:01]} f6 {[%emt 0:03:33]} 26. Rc6 {[%emt 0:01:53]} Bf7 {[%emt 0:02:30]} 27. Qg4 {[%emt 0:02:37]} Qd2 {[%emt 0:03:54]} 28. Bb5 {[%emt 0:02:55]} h5 {[%emt 0:03:48]} 29. Qf3 {[%emt 0:00:33]} Qf4 {[%emt 0:01:45]} 30. Rc8 {[%emt 0:04:41]} Rxc8 {[%emt 0:01:37]} 31. Rxc8+ {[%emt 0:00:04]} Kh7 {[%emt 0:00:26]} 32. Qd3 {[%emt 0:01:30]} h4 {[%emt 0:04:49]} 33. Bd7 {[%emt 0:04:58]} Be6 {[%emt 0:11:15]} 34. Bxe6 {[%emt 0:01:31]} Rxe6 {[%emt 0:00:16]} 35. Qd5 {[%emt 0:00:40]} Re8 {[%emt 0:04:29]} 36. Rxe8 {[%emt 0:00:28]} 1/2-1/2

[Event "FRA-chT Top 12 2019"]
[Site "Brest"]
[Date "2019.05.26"]
[Round "9.7"]
[White "Giroyan, Gary"]
[Black "Koch, Jean-Rene"]
[Result "1/2-1/2"]
[ECO "D31"]
[WhiteElo "2409"]
[BlackElo "2465"]
[Annotator "ChessBase"]
[PlyCount "47"]
[EventDate "2019.05.18"]
[EventType "team-tourn"]
[EventCountry "FRA"]
[SourceTitle "playchess.com"]
[Source "ChessBase"]
[SourceQuality "1"]
[TimeControl "40/5400+30:1800+30"]

1. d4 {[%emt 0:00:13]} d5 {[%emt 0:00:00]} 2. c4 {[%emt 0:00:18]} e6 {[%emt 0:00:00]} 3. Nc3 {[%emt 0:00:07]} Bb4 {[%emt 0:00:00]} 4. a3 {[%emt 0:00:06]} Bxc3+ {[%emt 0:00:00]} 5. bxc3 {[%emt 0:00:04]} Ne7 {[%emt 0:00:53]} 6. e3 {[%emt 0:00:21]} c5 {[%emt 0:05:12]} 7. Bd3 {[%emt 0:00:26]} Nbc6 {[%emt 0:02:21]} 8. Nf3 {[%emt 0:02:47]} b6 {[%emt 0:07:17]} 9. O-O {[%emt 0:00:36]} O-O {[%emt 0:05:56]} 10. Qe2 {[%emt 0:03:57]} Ba6 {[%emt 0:14:16]} 11. cxd5 {[%emt 0:13:41]} Bxd3 {[%emt 0:00:20]} 12. Qxd3 {[%emt 0:00:01]} exd5 {[%emt 0:00:26]} 13. dxc5 {[%emt 0:01:58]} bxc5 {[%emt 0:00:35]} 14. c4 {[%emt 0:00:02]} dxc4 {[%emt 0:15:15]} 15. Qxc4 {[%emt 0:00:02]} Qd5 {[%emt 0:05:27]} 16. Qc3 {[%emt 0:02:41]} Rab8 {[%emt 0:04:21]} 17. Bb2 {[%emt 0:09:50]} f6 {[%emt 0:00:13]} 18. Rac1 {[%emt 0:06:37]} Rb3 {[%emt 0:07:19]} 19. Qc2 {[%emt 0:01:45]} Rfb8 {[%emt 0:01:38]} 20. Ba1 {[%emt 0:00:06]} Rxa3 {[%emt 0:05:47]} 21. e4 {[%emt 0:08:08]} Qd3 {[%emt 0:03:28]} 22. Qxd3 {[%emt 0:05:01]} Rxd3 {[%emt 0:00:06]} 23. Rxc5 {[%emt 0:00:02]} Rbd8 {[%emt 0:03:04]} 24. e5 1/2-1/2

[Event "FRA-chT Top 12 2019"]
[Site "Brest"]
[Date "2019.05.26"]
[Round "9.7"]
[White "Colin, Vincent"]
[Black "Dornbusch, Tatiana"]
[Result "1-0"]
[ECO "A43"]
[WhiteElo "2383"]
[BlackElo "2285"]
[Annotator "NA"]
[PlyCount "59"]
[EventDate "2019.05.18"]
[EventType "team-tourn"]
[EventCountry "FRA"]
[SourceTitle "playchess.com"]
[Source "ChessBase"]
[SourceQuality "1"]
[TimeControl "40/5400+30:1800+30"]

1. d4 {[%emt 0:00:00]} Nf6 {[%emt 0:00:06]} 2. Nf3 {[%emt 0:00:00]} c5 {[%emt 0:01:20]} 3. d5 {[%emt 0:00:36]} b5 {[%emt 0:08:00]} 4. Bg5 {[%emt 0:00:39]} Qb6 {[%emt 0:00:26]} 5. Nc3 {[%emt 0:00:16]} b4 {[%emt 0:07:44]} 6. Na4 {[%emt 0:00:36]} Qa5 {[%emt 0:02:20]} 7. Bxf6 {[%emt 0:01:18]} exf6 {[%emt 0:03:29]} 8. b3 {[%emt 0:01:20]} Bd6 {[%emt 0:03:58]} 9. e4 {[%emt 0:12:57]} O-O {[%emt 0:06:37]} 10. Bd3 {[%emt 0:04:11]} Re8 {[%emt 0:15:38]} 11. O-O {[%emt 0:01:07]} Ba6 {[%emt 0:02:39]} 12. a3 {[%emt 0:07:33]} bxa3 {[%emt 0:11:09]} 13. c4 {[%emt 0:02:10]} Qb4 {[%emt 0:01:50]} 14. Ne1 {[%emt 0:05:01]} Bc8 {[%emt 0:11:22]} 15. f4 {[%emt 0:01:48]} Na6 {[%emt 0:00:28]} 16. e5 {[%emt 0:02:06]} Bf8 {[%emt 0:07:21]} 17. exf6 {[%emt 0:04:05]} d6 {[%emt 0:00:26]} 18. Nc2 {[%emt 0:04:35]} Qxb3 {[%emt 0:00:24]} 19. Rxa3 {[%emt 0:00:09]} Qb7 {[%emt 0:00:28]} 20. Bxh7+ {[%emt 0:01:50]} Kxh7 {[%emt 0:00:28]} 21. Qh5+ {[%emt 0:00:10]} Kg8 {[%emt 0:00:05]} 22. f5 {[%emt 0:00:12]} Bxf5 {[%emt 0:05:31]} 23. Qxf5 {[%emt 0:04:14]} Re5 {[%emt 0:02:08]} 24. Qh3 {[%emt 0:03:44]} Nb4 {[%emt 0:05:53]} 25. Ne3 {[%emt 0:03:04]} g6 {[%emt 0:01:44]} 26. Nf5 {[%emt 0:04:23]} Qc8 {[%emt 0:00:02]} 27. Rg3 {[%emt 0:00:47]} Rb8 {[%emt 0:01:01]} 28. Rxg6+ {[%emt 0:00:14]} fxg6 {[%emt 0:00:06]} 29. f7+ {[%emt 0:00:07]} Kxf7 {[%emt 0:00:19]} 30. Nxd6+ {[%emt 0:00:38]} 1-0

[Event "FRA-chT Top 12 2019"]
[Site "Brest"]
[Date "2019.05.26"]
[Round "9.8"]
[White "Sebag, Marie"]
[Black "Riff, Vincent"]
[Result "1/2-1/2"]
[ECO "B29"]
[WhiteElo "2476"]
[BlackElo "2399"]
[Annotator "ChessBase"]
[PlyCount "22"]
[EventDate "2019.05.18"]
[EventType "team-tourn"]
[EventCountry "FRA"]
[SourceTitle "playchess.com"]
[Source "ChessBase"]
[SourceQuality "1"]
[TimeControl "40/5400+30:1800+30"]

1. e4 {[%emt 0:00:00]} c5 {[%emt 0:00:00]} 2. Nf3 {[%emt 0:00:00]} Nf6 {[%emt 0:00:00]} 3. e5 {[%emt 0:15:40]} Nd5 {[%emt 0:00:00]} 4. c3 {[%emt 0:00:27]} Nc6 {[%emt 0:00:00]} 5. d4 {[%emt 0:01:12]} cxd4 {[%emt 0:00:03]} 6. cxd4 {[%emt 0:00:07]} d6 {[%emt 0:00:04]} 7. Bc4 {[%emt 0:01:35]} dxe5 {[%emt 0:00:16]} 8. dxe5 {[%emt 0:14:18]} Be6 {[%emt 0:00:05]} 9. O-O {[%emt 0:07:46]} g6 {[%emt 0:00:05]} 10. Ng5 {[%emt 0:09:56]} Bg7 {[%emt 0:00:05]} 11. Nxe6 {[%emt 0:09:50]} fxe6 {[%emt 0:00:05]} 1/2-1/2

[Event "FRA-chT Top 12 2019"]
[Site "Brest"]
[Date "2019.05.26"]
[Round "9.8"]
[White "Leconte, Maria"]
[Black "Bolon, Karelle"]
[Result "1/2-1/2"]
[ECO "B40"]
[WhiteElo "2246"]
[BlackElo "2018"]
[Annotator "NA"]
[PlyCount "84"]
[EventDate "2019.05.18"]
[EventType "team-tourn"]
[EventCountry "FRA"]
[SourceTitle "playchess.com"]
[Source "ChessBase"]
[SourceQuality "1"]
[TimeControl "40/5400+30:1800+30"]

1. e4 {[%emt 0:00:00]} c5 {[%emt 0:00:00]} 2. Nf3 {[%emt 0:00:00]} e6 {[%emt 0:00:02]} 3. d4 {[%emt 0:00:03]} cxd4 {[%emt 0:00:13]} 4. Nxd4 {[%emt 0:00:04]} Nf6 {[%emt 0:00:29]} 5. Nc3 {[%emt 0:00:23]} Bb4 {[%emt 0:00:19]} 6. e5 {[%emt 0:11:09]} Nd5 {[%emt 0:03:20]} 7. Bd2 {[%emt 0:05:40]} Nxc3 {[%emt 0:03:07]} 8. bxc3 {[%emt 0:00:17]} Be7 {[%emt 0:00:25]} 9. Qg4 {[%emt 0:04:52]} g6 {[%emt 0:03:14]} 10. Bd3 {[%emt 0:06:56]} Qa5 {[%emt 0:17:42]} 11. Qg3 {[%emt 0:19:22]} Nc6 {[%emt 0:03:50]} 12. Nb5 {[%emt 0:07:12]} a6 {[%emt 0:05:17]} 13. c4 {[%emt 0:05:44]} Nb4 {[%emt 0:20:10]} 14. Nd6+ {[%emt 0:00:24]} Bxd6 {[%emt 0:00:17]} 15. exd6 {[%emt 0:00:04]} Nxd3+ {[%emt 0:00:43]} 16. cxd3 {[%emt 0:00:11]} Qf5 {[%emt 0:03:55]} 17. O-O {[%emt 0:02:21]} b5 {[%emt 0:01:58]} 18. Rfe1 {[%emt 0:05:19]} h5 {[%emt 0:05:27]} 19. Bc3 {[%emt 0:01:23]} h4 {[%emt 0:05:48]} 20. Qe3 {[%emt 0:02:19]} Rh5 {[%emt 0:06:01]} 21. h3 {[%emt 0:00:48]} Bb7 {[%emt 0:00:39]} 22. f4 f6 {[%emt 0:04:17]} 23. Bd4 {[%emt 0:07:14]} Kf7 {[%emt 0:03:18]} 24. Rac1 {[%emt 0:10:22]} g5 {[%emt 0:00:26]} 25. Rf1 {[%emt 0:00:09]} g4 {[%emt 0:00:30]} 26. cxb5 {[%emt 0:00:30]} axb5 {[%emt 0:02:33]} 27. Rc7 {[%emt 0:03:48]} Bc6 {[%emt 0:01:04]} 28. Rc1 {[%emt 0:00:11]} Kg6 {[%emt 0:04:17]} 29. R7xc6 {[%emt 0:01:08]} dxc6 {[%emt 0:00:06]} 30. Rc5 {[%emt 0:00:03]} e5 {[%emt 0:00:52]} 31. fxe5 {[%emt 0:00:23]} gxh3 {[%emt 0:02:15]} 32. e6 {[%emt 0:01:09]} Qg4 {[%emt 0:01:07]} 33. Qe4+ {[%emt 0:00:30]} Qxe4 {[%emt 0:00:40]} 34. dxe4 {[%emt 0:00:03]} Rh7 {[%emt 0:01:40]} 35. gxh3 {[%emt 0:01:18]} Re8 {[%emt 0:00:53]} 36. e7 {[%emt 0:00:14]} Kf7 {[%emt 0:00:28]} 37. d7 {[%emt 0:02:02]} Rg8+ 38. Kf2 {[%emt 0:00:34]} Kxe7 {[%emt 0:00:24]} 39. Rxc6 {[%emt 0:00:24]} Kxd7 {[%emt 0:00:59]} 40. Rxf6 {[%emt 0:00:13]} Ra8 {[%emt 0:00:00]} 41. Rb6 {[%emt 0:07:06]} Rf7+ 42. Bf6 Kc7 {[%emt 0:08:00]} 1/2-1/2

[Event "FRA-chT Top 12 2019"]
[Site "Brest"]
[Date "2019.05.26"]
[Round "9.8"]
[White "Monpeurt, Cyrielle"]
[Black "Verot, Melanie"]
[Result "1-0"]
[ECO "B34"]
[WhiteElo "2166"]
[BlackElo "2069"]
[Annotator "NA"]
[PlyCount "43"]
[EventDate "2019.05.18"]
[EventType "team-tourn"]
[EventCountry "FRA"]
[SourceTitle "playchess.com"]
[Source "ChessBase"]
[SourceQuality "1"]
[TimeControl "40/5400+30:1800+30"]

1. e4 {[%emt 0:00:00]} c5 {[%emt 0:00:00]} 2. Nf3 {[%emt 0:00:00]} Nc6 {[%emt 0:00:18]} 3. d4 {[%emt 0:00:00]} cxd4 {[%emt 0:00:07]} 4. Nxd4 {[%emt 0:00:00]} g6 {[%emt 0:00:10]} 5. Nc3 {[%emt 0:00:14]} Bg7 {[%emt 0:00:23]} 6. Be3 {[%emt 0:00:16]} Nf6 {[%emt 0:00:26]} 7. Nxc6 {[%emt 0:00:10]} bxc6 {[%emt 0:00:19]} 8. e5 {[%emt 0:00:05]} Ng8 {[%emt 0:00:18]} 9. Bd4 {[%emt 0:00:12]} f6 {[%emt 0:01:36]} 10. f4 {[%emt 0:00:09]} Qa5 {[%emt 0:00:39]} 11. Qd2 {[%emt 0:00:24]} fxe5 {[%emt 0:02:36]} 12. fxe5 {[%emt 0:00:06]} Bxe5 {[%emt 0:13:00]} 13. O-O-O {[%emt 0:02:24]} Bxd4 {[%emt 0:18:57]} 14. Qxd4 {[%emt 0:00:21]} Nf6 {[%emt 0:00:09]} 15. Re1 {[%emt 0:00:14]} Qg5+ {[%emt 0:05:59]} 16. Kb1 {[%emt 0:00:48]} c5 {[%emt 0:05:55]} 17. Qd6 {[%emt 0:06:13]} O-O {[%emt 0:19:12]} 18. Rxe7 {[%emt 0:02:56]} Qg4 {[%emt 0:06:07]} 19. Ne4 {[%emt 0:20:28]} Nxe4 {[%emt 0:14:47]} 20. Bc4+ {[%emt 0:00:05]} Kh8 {[%emt 0:00:04]} 21. Qe5+ {[%emt 0:00:31]} Nf6 {[%emt 0:04:18]} 22. Re8 {[%emt 0:01:11]} 1-0

[Event "FRA-chT Top 12 2019"]
[Site "Brest"]
[Date "2019.05.26"]
[Round "9.8"]
[White "Steil-Antoni, Fiona"]
[Black "Harutyunyan, Ruben"]
[Result "1/2-1/2"]
[ECO "B22"]
[WhiteElo "2156"]
[BlackElo "2315"]
[Annotator "NA"]
[PlyCount "125"]
[EventDate "2019.05.18"]
[EventType "team-tourn"]
[EventCountry "FRA"]
[SourceTitle "playchess.com"]
[Source "ChessBase"]
[SourceQuality "1"]
[TimeControl "40/5400+30:1800+30"]

1. e4 {[%emt 0:00:00]} c5 {[%emt 0:00:00]} 2. c3 {[%emt 0:00:00]} Nf6 {[%emt 0:00:00]} 3. e5 {[%emt 0:00:20]} Nd5 {[%emt 0:00:00]} 4. d4 {[%emt 0:00:13]} cxd4 {[%emt 0:00:00]} 5. cxd4 {[%emt 0:00:11]} d6 {[%emt 0:00:00]} 6. Nf3 {[%emt 0:00:11]} Nc6 {[%emt 0:00:00]} 7. Bc4 {[%emt 0:00:21]} dxe5 {[%emt 0:00:03]} 8. dxe5 Ndb4 {[%emt 0:00:07]} 9. Qxd8+ {[%emt 0:10:21]} Nxd8 {[%emt 0:00:04]} 10. Na3 {[%emt 0:03:11]} a6 {[%emt 0:05:15]} 11. O-O {[%emt 0:02:46]} e6 {[%emt 0:05:05]} 12. Be3 {[%emt 0:06:49]} Bd7 {[%emt 0:19:02]} 13. Rfd1 {[%emt 0:03:33]} Be7 {[%emt 0:10:24]} 14. Bb3 {[%emt 0:07:38]} b5 {[%emt 0:02:09]} 15. Rac1 {[%emt 0:05:07]} Bc6 {[%emt 0:14:27]} 16. Nb1 {[%emt 0:11:43]} O-O {[%emt 0:05:25]} 17. Nc3 {[%emt 0:03:20]} Bxf3 {[%emt 0:10:33]} 18. gxf3 {[%emt 0:03:35]} Ndc6 {[%emt 0:01:02]} 19. f4 {[%emt 0:12:09]} Na5 {[%emt 0:03:55]} 20. Rd7 {[%emt 0:03:36]} Nxb3 21. axb3 {[%emt 0:00:03]} Rfe8 {[%emt 0:03:38]} 22. Ne4 {[%emt 0:01:59]} Nd5 {[%emt 0:03:36]} 23. Rc6 {[%emt 0:04:15]} Rec8 {[%emt 0:08:31]} 24. Rxc8+ {[%emt 0:03:08]} Rxc8 {[%emt 0:00:03]} 25. Nc3 {[%emt 0:04:03]} Rc7 {[%emt 0:02:28]} 26. Rxc7 {[%emt 0:00:23]} Nxc7 {[%emt 0:00:01]} 27. Bb6 {[%emt 0:00:28]} Na8 {[%emt 0:01:05]} 28. Ba5 {[%emt 0:03:11]} Kf8 {[%emt 0:00:32]} 29. Kg2 {[%emt 0:02:31]} Ke8 {[%emt 0:00:16]} 30. Kf3 {[%emt 0:00:38]} Kd7 {[%emt 0:00:10]} 31. Ke4 {[%emt 0:02:48]} g6 {[%emt 0:06:55]} 32. Kd4 {[%emt 0:01:47]} Kc6 33. Ne4 h6 {[%emt 0:00:44]} 34. b4 {[%emt 0:04:02]} Bh4 {[%emt 0:00:35]} 35. Ke3 {[%emt 0:00:47]} Kd5 {[%emt 0:00:47]} 36. Nc5 {[%emt 0:01:01]} Be7 {[%emt 0:00:27]} 37. Nxa6 {[%emt 0:00:54]} Kc4 {[%emt 0:00:36]} 38. Kd2 {[%emt 0:01:26]} g5 {[%emt 0:00:21]} 39. fxg5 {[%emt 0:00:30]} hxg5 {[%emt 0:00:21]} 40. Nb8 {[%emt 0:00:29]} Kd5 {[%emt 0:00:44]} 41. Nd7 {[%emt 0:01:45]} Ke4 {[%emt 0:10:05]} 42. Ke2 {[%emt 0:02:18]} g4 {[%emt 0:02:36]} 43. Nf6+ {[%emt 0:03:46]} Kf4 {[%emt 0:03:49]} 44. Kf1 {[%emt 0:09:12]} Kf3 {[%emt 0:01:49]} 45. b3 {[%emt 0:03:45]} Bf8 {[%emt 0:06:34]} 46. Ne8 {[%emt 0:00:33]} Bh6 {[%emt 0:04:18]} 47. Nd6 {[%emt 0:00:15]} Bf4 {[%emt 0:00:19]} 48. Nxf7 {[%emt 0:00:41]} Bxh2 {[%emt 0:01:22]} 49. Ng5+ {[%emt 0:00:55]} Kf4 {[%emt 0:00:16]} 50. Kg2 {[%emt 0:02:00]} Kxg5 {[%emt 0:00:25]} 51. Kxh2 {[%emt 0:00:13]} Kf4 {[%emt 0:00:05]} 52. Kg2 {[%emt 0:04:00]} Kxe5 {[%emt 0:00:08]} 53. Kg3 {[%emt 0:00:11]} Kf5 {[%emt 0:00:06]} 54. f3 {[%emt 0:00:32]} gxf3 {[%emt 0:00:05]} 55. Kxf3 {[%emt 0:00:02]} Ke5 {[%emt 0:01:20]} 56. Ke3 {[%emt 0:00:01]} Kd5 {[%emt 0:01:54]} 57. Kd3 {[%emt 0:01:48]} Kc6 {[%emt 0:00:57]} 58. Kd4 {[%emt 0:02:06]} Kd6 {[%emt 0:00:08]} 59. Bd8 {[%emt 0:01:24]} Kd7 {[%emt 0:00:28]} 60. Ba5 {[%emt 0:00:21]} Kd6 {[%emt 0:00:46]} 61. Bd8 {[%emt 0:00:04]} Kd7 {[%emt 0:02:38]} 62. Ba5 {[%emt 0:00:02]} Kd6 {[%emt 0:00:27]} 63. Ke4 {Ke5+} 1/2-1/2

[Event "FRA-chT Top 12 2019"]
[Site "Brest"]
[Date "2019.05.26"]
[Round "9.8"]
[White "De Seroux, Camille"]
[Black "Haussernot, Cecile"]
[Result "0-1"]
[ECO "D00"]
[WhiteElo "2143"]
[BlackElo "2097"]
[Annotator "NA"]
[PlyCount "88"]
[EventDate "2019.05.18"]
[EventType "team-tourn"]
[EventCountry "FRA"]
[SourceTitle "playchess.com"]
[Source "ChessBase"]
[SourceQuality "1"]
[TimeControl "40/5400+30:1800+30"]

1. d4 {[%emt 0:00:00]} d5 {[%emt 0:00:00]} 2. Bf4 {[%emt 0:00:06]} c5 {[%emt 0:00:35]} 3. e3 {[%emt 0:00:55]} Nf6 {[%emt 0:01:25]} 4. c3 {[%emt 0:02:17]} Qb6 {[%emt 0:00:38]} 5. Qb3 {[%emt 0:07:50]} c4 {[%emt 0:00:07]} 6. Qxb6 {[%emt 0:01:47]} axb6 {[%emt 0:00:04]} 7. Na3 {[%emt 0:02:57]} Nc6 {[%emt 0:10:47]} 8. Nf3 {[%emt 0:18:28]} Bf5 {[%emt 0:32:50]} 9. Be2 {[%emt 0:08:49]} Ra5 {[%emt 0:16:12]} 10. Bc7 {[%emt 0:11:04]} Kd7 {[%emt 0:06:07]} 11. Bxb6 {[%emt 0:12:11]} Ra6 {[%emt 0:00:38]} 12. Bc5 {[%emt 0:01:29]} Ne4 {[%emt 0:11:10]} 13. O-O {[%emt 0:10:15]} e6 {[%emt 0:01:11]} 14. Bxf8 {[%emt 0:01:34]} Rxf8 {[%emt 0:00:05]} 15. Nb1 {[%emt 0:05:10]} Rb6 {[%emt 0:01:32]} 16. b3 {[%emt 0:03:09]} cxb3 {[%emt 0:00:08]} 17. axb3 {[%emt 0:00:06]} Rxb3 {[%emt 0:00:07]} 18. c4 {[%emt 0:00:54]} Rb2 {[%emt 0:01:13]} 19. cxd5 {[%emt 0:02:42]} exd5 {[%emt 0:00:32]} 20. Bd3 {[%emt 0:03:49]} Nb4 {[%emt 0:00:37]} 21. Ne5+ {[%emt 0:02:02]} Ke6 {[%emt 0:02:01]} 22. f3 {[%emt 0:01:30]} Nd6 {[%emt 0:00:16]} 23. Bxf5+ {[%emt 0:01:11]} Nxf5 {[%emt 0:00:06]} 24. Re1 {[%emt 0:00:27]} Nc2 {[%emt 0:00:23]} 25. Re2 {[%emt 0:00:28]} Rc8 {[%emt 0:01:21]} 26. Na3 {[%emt 0:00:44]} Rc3 {[%emt 0:02:33]} 27. Nxc2 {[%emt 0:00:54]} Rcxc2 {[%emt 0:00:08]} 28. Rxc2 {[%emt 0:00:18]} Rxc2 {[%emt 0:00:04]} 29. Rb1 {[%emt 0:00:26]} Nxe3 {[%emt 0:01:02]} 30. Nd3 {[%emt 0:00:49]} Rxg2+ {[%emt 0:00:34]} 31. Kh1 {[%emt 0:00:01]} Rd2 {[%emt 0:00:11]} 32. Nc5+ {[%emt 0:00:33]} Kf5 {[%emt 0:00:18]} 33. Nxb7 {[%emt 0:00:30]} Kf4 {[%emt 0:02:06]} 34. Nd6 {[%emt 0:00:48]} f5 {[%emt 0:00:31]} 35. Ne8 {[%emt 0:00:33]} g5 {[%emt 0:00:54]} 36. Nf6 {[%emt 0:00:21]} h6 {[%emt 0:00:16]} 37. Kg1 {[%emt 0:00:44]} Kxf3 {[%emt 0:00:30]} 38. Ng8 {[%emt 0:00:29]} h5 {[%emt 0:00:51]} 39. h3 {[%emt 0:00:24]} Kg3 {[%emt 0:01:34]} 40. Nf6 {[%emt 0:00:29]} h4 {[%emt 0:00:24]} 41. Re1 {[%emt 0:01:08]} f4 {[%emt 0:00:54]} 42. Kh1 {[%emt 0:00:54]} f3 {[%emt 0:01:22]} 43. Ng4 {[%emt 0:05:37]} Nxg4 {[%emt 0:00:36]} 44. hxg4 {[%emt 0:00:25]} Rh2+ {[%emt 0:00:05]} 0-1

[Event "FRA-chT Top 12 2019"]
[Site "Brest"]
[Date "2019.05.26"]
[Round "9.8"]
[White "Fruteau, Sabine"]
[Black "Skripchenko, Almira"]
[Result "0-1"]
[ECO "A01"]
[WhiteElo "2015"]
[BlackElo "2406"]
[Annotator "NA"]
[PlyCount "66"]
[EventDate "2019.05.18"]
[EventType "team-tourn"]
[EventCountry "FRA"]
[SourceTitle "playchess.com"]
[Source "ChessBase"]
[SourceQuality "1"]
[TimeControl "40/5400+30:1800+30"]

1. b3 {[%emt 0:00:00]} c5 {[%emt 0:01:38]} 2. c4 {[%emt 0:01:45]} Nf6 {[%emt 0:01:43]} 3. Bb2 {[%emt 0:00:08]} b6 {[%emt 0:03:22]} 4. Nf3 {[%emt 0:04:13]} Bb7 {[%emt 0:00:11]} 5. e3 {[%emt 0:00:06]} e6 {[%emt 0:02:04]} 6. Be2 {[%emt 0:03:20]} Be7 {[%emt 0:01:08]} 7. O-O {[%emt 0:00:33]} O-O {[%emt 0:00:04]} 8. d3 {[%emt 0:00:29]} d5 {[%emt 0:00:45]} 9. Nbd2 {[%emt 0:05:24]} Nbd7 {[%emt 0:04:46]} 10. a3 {[%emt 0:09:23]} Bd6 {[%emt 0:02:35]} 11. Qc2 {[%emt 0:07:48]} Qe7 {[%emt 0:00:16]} 12. Rfe1 {[%emt 0:03:13]} Rac8 {[%emt 0:01:09]} 13. Rac1 {[%emt 0:01:02]} Bb8 {[%emt 0:04:25]} 14. Nf1 {[%emt 0:15:20]} e5 {[%emt 0:06:06]} 15. Ng3 {[%emt 0:07:21]} Rfe8 {[%emt 0:03:40]} 16. e4 {[%emt 0:04:26]} d4 {[%emt 0:04:07]} 17. Rb1 {[%emt 0:07:22]} Nf8 {[%emt 0:03:31]} 18. Bc1 {[%emt 0:00:23]} N6d7 {[%emt 0:00:48]} 19. Nf5 {[%emt 0:04:31]} Qd8 {[%emt 0:00:55]} 20. Bf1 {[%emt 0:08:24]} Ne6 {[%emt 0:00:45]} 21. b4 {[%emt 0:03:53]} g6 {[%emt 0:01:03]} 22. Ng3 {[%emt 0:01:34]} Bd6 {[%emt 0:00:15]} 23. Nd2 {[%emt 0:05:32]} Rf8 {[%emt 0:03:06]} 24. Nf3 {[%emt 0:02:52]} f5 {[%emt 0:02:18]} 25. Bh6 {[%emt 0:02:13]} Rf7 {[%emt 0:02:22]} 26. bxc5 {[%emt 0:00:56]} Rxc5 {[%emt 0:00:35]} 27. exf5 {[%emt 0:00:32]} gxf5 {[%emt 0:00:08]} 28. Bd2 {[%emt 0:00:28]} Bxf3 {[%emt 0:00:47]} 29. gxf3 {[%emt 0:00:06]} Qh4 {[%emt 0:00:32]} 30. Bb4 {[%emt 0:00:19]} Rc6 {[%emt 0:02:13]} 31. Bxd6 {[%emt 0:00:43]} Rxd6 {[%emt 0:00:04]} 32. c5 {[%emt 0:00:23]} Nexc5 {[%emt 0:01:01]} 33. f4 {[%emt 0:00:55]} exf4 {[%emt 0:00:58]} 0-1